bitfinex/quotes_ETHUSD_20250328
["timestamp","ask_amount","ask_price","bid_price","bid_amount"]
[1743165172067,5.3954478,1893.4,1893.0,5.28244]
[1743165172244,0.1139178,1893.4,1893.1,2.83250926]
[1743165172443,0.1139178,1893.4,1893.1,13.39699926]
[1743165172632,0.1139178,1893.4,1893.1,2.83250926]
[1743165172836,0.1139178,1893.4,1893.3,5.28178]
[1743165173044,0.1139178,1893.4,1893.3,14.19378]
[1743165173267,0.1139178,1893.4,1893.3,14.74378]
[1743165173622,0.1139178,1893.4,1893.3,17.74378]
[1743165174917,0.1139178,1893.4,1893.3,19.29405668]
[1743165175116,0.1139178,1893.4,1893.3,18.55748]
[1743165175653,0.1139178,1893.4,1893.3,18.9525509]
[1743165176555,5.3954178,1893.4,1893.3,0.3950709]
[1743165176758,0.1139178,1893.4,1893.3,8.787]
[1743165176924,0.1139178,1893.4,1893.3,5.83178]
[1743165177248,0.1139178,1893.4,1893.3,14.60678]
[1743165177446,0.1139178,1893.4,1893.3,18.0108956]
[1743165177941,0.1139178,1893.4,1893.3,48.8723336]
[1743165178259,0.1139178,1893.4,1893.3,20.8876806]
[1743165179047,0.1139178,1893.4,1893.3,18.0108956]
[1743165179761,0.1139178,1893.4,1893.3,21.7193186]
[1743165180125,0.1139178,1893.4,1893.3,12.989146]
[1743165180362,0.1139178,1893.4,1892.7,2.83250926]
[1743165180532,0.1139178,1893.4,1892.7,8.11575926]
[1743165180734,5.28205,1893.3,1892.9,5.2828]
[1743165180953,5.28199,1893.3,1892.9,10.5656]
[1743165181263,5.28229,1893.2,1893.0,2.83250926]
[1743165181451,5.28181,1893.3,1893.1,8.775]
[1743165181622,5.28206,1893.2,1893.1,8.775]
[1743165182072,5.28206,1893.2,1892.8,27.927]
[1743165182073,6.338447,1893.2,1892.8,27.927]
[1743165182232,6.338467,1893.2,1892.8,27.927]
[1743165182433,5.28191,1893.3,1892.9,14.01869]
[1743165182671,0.1139178,1893.4,1891.7,5.28625]
[1743165182672,0.8336,1892.5,1891.7,5.28625]
[1743165182871,0.8336,1892.5,1891.6,0.8709]
[1743165182872,5.2835,1892.7,1892.2,5.67634715]
[1743165183075,6.09849,1892.8,1892.3,5.28455]
[1743165183275,5.28388,1892.6,1892.2,8.854]
[1743165183474,5.28438,1892.4,1892.2,8.854]
[1743165183868,6.09851,1892.8,1892.2,8.854]
[1743165184048,1.425151,1892.8,1892.2,8.854]
[1743165184256,5.28457,1892.3,1892.1,36.743]
[1743165184453,5.28485,1892.2,1891.6,8.808]
[1743165184653,1.382285,1892.1,1891.5,8.808]
[1743165184871,10.57121,1892.0,1891.6,8.807]
[1743165185049,5.28599,1891.8,1891.6,8.807]
[1743165185250,5.28599,1891.8,1890.8,5.28858]
[1743165185251,0.856,1891.5,1889.6,0.8677]
[1743165185454,0.8401,1891.2,1889.7,2.83250926]
[1743165185684,5.28948,1890.6,1890.0,8.12333926]
[1743165185885,5.29016,1890.3,1890.2,9.011]
[1743165186066,5.29044,1890.2,1890.1,0.05]
[1743165188800,5.29009,1890.4,1890.1,0.05]
[1743165189088,5.28903,1890.8,1890.1,14.2986]
[1743165189273,5.28903,1890.8,1890.1,9.008]
[1743165189274,0.612663,1890.8,1890.1,9.008]
[1743165189479,5.29001,1890.4,1890.1,9.008]
[1743165189779,5.28919,1890.7,1890.1,14.29869]
[1743165190188,5.28919,1890.7,1890.2,5.29031]
[1743165190389,5.28937,1890.6,1890.1,14.29867]
[1743165190578,3.8376,1890.9,1890.1,9.008]
[1743165190786,5.28945,1890.6,1890.1,14.29852]
[1743165190993,5.28929,1890.7,1890.2,5.29031]
[1743165191300,0.8376,1890.9,1890.2,5.29031]
[1743165191301,11.41487,1890.9,1890.4,5.28976]
[1743165191507,6.12622,1890.9,1890.5,5.28954]
[1743165191670,6.12622,1890.9,1890.4,5.28976]
[1743165191671,5.28882,1890.8,1890.4,5.28976]
[1743165191873,5.41049611,1890.6,1890.4,5.28973]
[1743165192063,5.41049611,1890.6,1890.5,5.2896]
[1743165192265,5.41049611,1890.6,1890.2,27.951]
[1743165192503,5.41049611,1890.6,1890.2,33.24132]
[1743165192800,5.41049611,1890.6,1890.3,5.29014]
[1743165193004,5.41049611,1890.6,1890.2,33.24124]
[1743165193304,5.41049611,1890.6,1890.5,5.2896]
[1743165193805,5.41049611,1890.6,1890.5,5.8396]
[1743165194007,5.41049611,1890.6,1890.5,8.8396]
[1743165194310,2.45163104,1890.6,1890.5,8.8396]
[1743165194802,5.28721,1891.4,1890.7,8.83904]
[1743165194803,4.60952663,1890.8,1890.7,8.83904]
[1743165195006,4.60952663,1890.8,1890.7,17.64104]
[1743165195169,4.60952663,1890.8,1890.7,18.862188]
[1743165195569,4.60952663,1890.8,1890.7,22.211868]
[1743165195771,4.60952663,1890.8,1890.7,18.312188]
[1743165196214,4.60952663,1890.8,1890.7,8.802]
[1743165196580,4.60952663,1890.8,1890.7,14.09104]
[1743165196902,4.60952663,1890.8,1890.7,19.396573]
[1743165197108,4.60952663,1890.8,1890.7,17.64104]
[1743165198167,6.26332556,1891.6,1890.8,3.0]
[1743165198584,10.57607,1891.1,1890.8,3.0]
[1743165198780,5.28876,1890.8,1890.7,8.706]
[1743165199006,5.28792,1891.1,1890.3,5.29012]
[1743165199208,5.28915,1890.7,1890.5,8.703]
[1743165199505,5.28998,1890.4,1890.2,36.648]
[1743165199984,0.8532,1890.6,1890.2,41.93837]
[1743165200308,0.8532,1890.6,1890.2,36.648]
[1743165200508,5.28942,1890.6,1890.2,41.93826]
[1743165200687,5.28934,1890.6,1890.2,36.648]
[1743165201025,3.0,1890.9,1890.2,36.648]
[1743165201026,5.28873,1890.9,1890.4,5.28968]
[1743165201170,0.8532,1891.0,1890.3,5.34304843]
[1743165201171,5.2889,1890.8,1890.3,5.34304843]
[1743165201372,5.2894,1890.6,1890.2,41.93841]
[1743165201808,5.28905,1890.7,1890.3,5.29015]
[1743165201999,6.26332556,1890.6,1890.3,10.58017]
[1743165202199,6.26332556,1890.6,1890.3,5.29002]
[1743165202377,6.26332556,1890.6,1890.5,5.2896]
[1743165202577,6.26332556,1890.6,1890.4,5.2898]
[1743165202887,6.26332556,1890.6,1890.5,5.2896]
[1743165203079,6.26332556,1890.6,1890.5,8.8396]
[1743165203479,6.26332556,1890.6,1890.5,20.050126]
[1743165203710,6.26332556,1890.6,1890.5,5.2896]
[1743165204011,6.26332556,1890.6,1890.4,5.69146628]
[1743165204230,6.26332556,1890.6,1890.5,8.2896]
[1743165204377,6.26332556,1890.6,1890.5,8.8396]
[1743165204573,5.56e-06,1890.6,1890.5,8.8396]
[1743165205301,5.56e-06,1890.6,1890.5,16.752238]
[1743165205502,5.56e-06,1890.6,1890.5,5.2896]
[1743165205811,5.56e-06,1890.6,1890.5,8.565]
[1743165206308,5.56e-06,1890.6,1890.5,13.8546]
[1743165206515,5.56e-06,1890.6,1890.5,24.285859]
[1743165206687,5.56e-06,1890.6,1890.5,13.8546]
[1743165207402,5.56e-06,1890.6,1890.5,8.565]
[1743165207908,5.28932556,1890.6,1890.5,8.509]
[1743165208924,5.28932556,1890.6,1890.2,34.04123]
[1743165208925,5.28932556,1890.6,1890.2,33.24143]
[1743165209103,5.28963,1890.5,1890.2,27.951]
[1743165209416,5.29044,1890.2,1890.1,0.05]
[1743165209579,9.13444,1890.2,1890.1,0.05]
[1743165209780,3.8094,1890.0,1888.7,20.74321]
[1743165210074,3.8094,1890.0,1888.4,6.09456]
[1743165210075,6.1021,1889.4,1888.8,8.487]
[1743165210275,5.29339,1889.2,1888.8,8.487]
[1743165210516,5.29386,1889.0,1888.8,8.487]
[1743165211419,5.29326,1889.2,1888.4,27.959]
[1743165211593,0.8599,1888.8,1888.0,5.29638]
[1743165211927,5.29523,1888.5,1888.0,5.29638]
[1743165212215,5.29552,1888.4,1888.2,8.462]
[1743165212604,0.8599,1888.8,1888.3,5.29576]
[1743165212824,5.29436,1888.9,1888.4,5.29532]
[1743165213019,5.29439,1888.8,1888.4,5.29544]
[1743165213198,9.15345,1889.1,1888.2,36.429]
[1743165213398,5.29513,1888.6,1888.3,8.472]
[1743165213621,5.29511,1888.6,1888.3,8.472]
[1743165213961,5.29537,1888.5,1888.3,8.472]
[1743165214304,6.15538,1888.4,1888.3,8.472]
[1743165215099,5.29532,1888.5,1888.3,8.472]
[1743165215319,5.29548,1888.4,1888.3,8.472]
[1743165215633,5.29576,1888.3,1888.1,8.478]
[1743165215834,5.29604,1888.2,1888.1,8.478]
[1743165216224,6.17444,1888.2,1888.1,0.05]
[1743165216410,9.17444,1888.2,1888.1,0.05]
[1743165216613,6.17444,1888.2,1888.1,0.05]
[1743165217924,9.17444,1888.2,1888.1,0.05]
[1743165219439,6.17444,1888.2,1888.1,0.05]
[1743165220253,5.29586,1888.3,1888.1,0.05]
[1743165220620,5.29586,1888.3,1888.2,8.319]
[1743165220817,5.29522,1888.5,1888.2,8.319]
[1743165221050,6.12682,1888.6,1888.2,8.319]
[1743165221233,5.29492,1888.6,1888.2,13.61487]
[1743165221458,5.29454,1888.8,1888.3,0.05295615]
[1743165221647,5.29405,1889.0,1888.4,5.29548]
[1743165221832,5.29421,1888.9,1888.5,10.59009]
[1743165222160,5.29326,1889.2,1888.7,5.29439]
[1743165222357,5.29326,1889.2,1888.3,3.8274]
[1743165222358,6.17241741,1889.3,1888.8,8.281]
[1743165222559,5.35631741,1888.9,1888.6,5.2948]
[1743165222726,5.35631741,1888.9,1888.7,8.272]
[1743165223655,10.65052741,1888.9,1888.7,8.272]
[1743165224019,5.35631741,1888.9,1888.7,8.272]
[1743165224218,10.65052741,1888.9,1888.7,8.272]
[1743165224418,10.65052741,1888.9,1888.2,5.29592]
[1743165224419,5.29503,1888.6,1888.2,5.29592]
[1743165224626,5.29561,1888.4,1888.3,8.225]
[1743165225169,5.29531,1888.5,1888.3,8.225]
[1743165225457,0.8344,1888.7,1888.3,8.225]
[1743165225665,5.29548,1888.4,1888.3,8.225]
[1743165226175,5.29536,1888.5,1888.1,0.05]
[1743165226176,5.29604,1888.2,1888.1,0.05]
[1743165226330,5.29604,1888.2,1888.1,8.232]
[1743165227027,5.29579,1888.3,1888.1,8.232]
[1743165227651,5.29536,1888.5,1888.1,13.52826]
[1743165227876,5.29536,1888.5,1888.1,8.232]
[1743165228080,6.12919,1888.7,1888.2,5.29593]
[1743165228278,5.29494,1888.6,1888.2,5.29593]
[1743165228547,6.12914,1888.7,1888.2,5.29604]
[1743165228748,6.12906,1888.7,1888.1,8.232]
[1743165228943,5.29576,1888.3,1888.2,8.12]
[1743165229180,5.29576,1888.3,1888.1,0.05]
[1743165229389,5.29576,1888.3,1888.2,8.112]
[1743165229887,5.29604,1888.2,1888.1,0.05]
[1743165230093,10.59172,1888.3,1888.1,8.151]
[1743165230391,5.29604,1888.2,1888.1,8.151]
[1743165230791,5.29604,1888.2,1888.1,0.05]
[1743165230993,6.35522,1888.2,1888.1,0.05]
[1743165231208,7.27522,1888.2,1888.1,0.05]
[1743165231350,10.27522,1888.2,1888.1,0.05]
[1743165231688,7.27522,1888.2,1888.1,0.05]
[1743165232189,10.27522,1888.2,1888.1,1e-05]
[1743165232392,11.50304,1887.5,1887.2,8.053]
[1743165232695,5.29803,1887.5,1887.2,8.053]
[1743165232864,5.29774,1887.6,1887.2,8.053]
[1743165233073,5.29849,1887.4,1887.2,8.053]
[1743165233288,5.29857,1887.3,1887.2,8.053]
[1743165233591,5.29914,1887.1,1886.8,27.999]
[1743165233789,5.29777,1887.6,1887.0,8.03]
[1743165234088,5.29929,1887.1,1886.9,8.021]
[1743165234300,5.29941,1887.0,1886.9,8.021]
[1743165234667,5.29888,1887.2,1886.9,8.021]
[1743165235001,5.29867,1887.3,1886.9,8.021]
[1743165235374,5.29831,1887.4,1886.9,13.32066]
[1743165235567,5.29808,1887.5,1887.0,5.29939]
[1743165235768,5.29841,1887.4,1887.0,5.29939]
[1743165235968,4.059649,1887.4,1886.8,27.999]
[1743165236160,4.059649,1887.4,1886.7,7.988]
[1743165236161,5.29937,1887.1,1886.7,7.988]
[1743165236361,6.358019,1887.4,1886.7,7.988]
[1743165236362,5.29885,1887.3,1886.7,7.988]
[1743165236684,5.29857,1887.3,1886.4,0.8468]
[1743165236882,0.8601,1886.9,1886.5,7.964]
[1743165237056,5.29955,1887.0,1886.5,13.26464]
[1743165237256,5.29954,1887.0,1886.5,7.964]
[1743165237496,5.29992,1886.9,1886.5,7.964]
[1743165237699,5.29944,1887.0,1886.6,5.30036]
[1743165237894,5.29967,1887.0,1886.5,13.26478]
[1743165238063,5.29981,1886.9,1886.5,7.964]
[1743165238393,5.29978,1886.9,1886.5,13.26482]
[1743165238598,10.5996,1886.9,1886.5,13.26482]
[1743165238891,5.30028,1886.7,1886.5,7.964]
[1743165239064,5.3,1886.8,1886.5,7.964]
[1743165239693,5.29998,1886.8,1886.5,7.964]
[1743165240268,5.29973,1886.9,1886.5,7.964]
[1743165240469,5.30009,1886.8,1886.5,7.964]
[1743165240693,5.30065,1886.6,1886.2,5.3015]
[1743165240879,5.29966,1887.0,1886.3,7.933]
[1743165241084,5.30101,1886.5,1886.1,33.35567]
[1743165241361,5.30083,1886.5,1886.2,7.923]
[1743165241563,5.30166,1886.2,1886.1,28.054]
[1743165241771,0.8657,1886.9,1886.1,35.969]
[1743165241987,5.29934,1887.1,1886.6,5.30033]
[1743165242267,5.2983,1887.4,1886.7,14.11666]
[1743165242490,5.29878,1887.3,1886.8,5.24997]
[1743165242690,5.35631741,1887.5,1887.0,5.29927]
[1743165242691,5.29831,1887.4,1887.0,5.29927]
[1743165242910,5.30121,1886.4,1886.1,0.05]
[1743165243092,5.30138,1886.3,1886.1,0.05]
[1743165243610,5.30166,1886.2,1886.1,0.05]
[1743165243817,5.30122,1886.4,1886.1,0.05]
[1743165244029,10.60184,1886.5,1886.1,5.35184]
[1743165244225,5.30026,1886.7,1886.1,0.05]
[1743165244380,5.30026,1886.7,1886.3,5.30121]
[1743165244575,5.30008,1886.8,1886.4,13.25503]
[1743165244782,5.29962,1887.0,1886.6,5.30042]
[1743165245012,6.1434,1887.2,1886.8,5.29988]
[1743165245220,5.2988,1887.3,1886.8,5.29975]
[1743165245443,5.2988,1887.3,1886.9,5.29959]
[1743165245595,5.2978,1887.6,1887.1,5.299]
[1743165245783,5.29845,1887.4,1887.2,7.931]
[1743165246296,5.29804,1887.5,1887.2,7.931]
[1743165246496,5.29814,1887.5,1887.2,7.931]
[1743165246711,5.29857,1887.3,1887.2,7.931]
[1743165247033,5.29831,1887.4,1887.2,7.931]
[1743165247188,5.2978,1887.6,1887.2,13.22975]
[1743165247387,0.9085,1888.2,1887.3,0.05298635]
[1743165247734,5.29966,1887.0,1886.9,7.909]
[1743165248296,5.30056,1886.6,1886.5,7.901]
[1743165248721,5.30034,1886.7,1886.3,5.30136]
[1743165248915,5.30034,1886.7,1886.5,7.894]
[1743165249120,0.8513,1887.4,1886.5,7.894]
[1743165249327,5.29954,1887.0,1886.6,5.3005]
[1743165249733,5.2986,1887.3,1886.5,7.894]
[1743165250029,5.29942,1887.0,1886.6,10.60064]
[1743165250213,5.29942,1887.0,1886.6,5.30026]
[1743165250402,9.14979,1887.4,1886.5,7.894]
[1743165250403,5.29857,1887.3,1886.5,7.894]
[1743165250601,0.8513,1887.4,1886.8,5.29994]
[1743165250602,5.29902,1887.2,1886.8,5.29994]
[1743165250807,5.29902,1887.2,1886.7,5.30022]
[1743165251002,5.29902,1887.2,1886.8,5.2998]
[1743165251200,5.30015,1886.8,1886.1,8.18428926]
[1743165251417,5.2997,1886.9,1886.5,5.30078]
[1743165251613,5.30002,1886.8,1886.4,5.30108]
[1743165251827,5.30027,1886.7,1886.4,5.30098]
[1743165252030,5.30026,1886.7,1886.5,7.821]
[1743165252531,5.30026,1886.7,1886.6,7.808]
[1743165252828,5.30026,1886.7,1886.2,39.52162]
[1743165253016,5.30026,1886.7,1886.6,7.805]
[1743165253419,6.360285,1886.7,1886.6,7.805]
[1743165253626,5.30136,1886.4,1886.2,28.9185]
[1743165253934,5.30166,1886.2,1886.1,0.05]
[1743165254095,5.30166,1886.2,1886.1,7.831]
[1743165254292,10.60316,1886.3,1886.1,0.05]
[1743165254515,5.30106,1886.5,1886.1,0.05]
[1743165254737,5.30166,1886.2,1886.1,0.05]
[1743165255442,5.30139,1886.3,1886.1,0.05]
[1743165255737,0.9132,1886.8,1886.1,0.05]
[1743165256037,5.30142,1886.3,1886.1,0.05]
[1743165256197,10.60299,1886.3,1886.1,0.05]
[1743165256398,6.21334,1886.8,1886.1,0.05]
[1743165256399,5.30114,1886.4,1886.1,0.05]
[1743165256622,5.30148,1886.3,1886.1,0.05]
[1743165256905,5.30111,1886.4,1886.1,0.05]
[1743165257102,5.30062,1886.6,1886.2,13.04362]
[1743165257330,6.08252103,1886.7,1886.2,7.742]
[1743165257639,6.08252103,1886.7,1886.6,5.30054]
[1743165258427,6.08252103,1886.7,1886.4,5.30095]
[1743165258612,6.08252103,1886.7,1886.5,5.30064]
[1743165258814,6.08252103,1886.7,1886.6,5.30054]
[1743165259134,5.29948,1887.0,1886.6,10.60108]
[1743165259309,10.59852,1887.1,1886.7,13.0112]
[1743165259509,5.29915,1887.1,1886.7,13.0112]
[1743165259737,5.29915,1887.1,1886.7,7.711]
[1743165259738,10.59852,1887.1,1886.7,7.711]
[1743165260550,5.30015,1886.8,1886.4,0.9133]
[1743165260738,5.30015,1886.8,1886.4,6.21415]
[1743165261055,5.30054,1886.6,1886.4,7.678]
[1743165261415,10.60072,1886.7,1886.4,7.678]
[1743165261613,5.30082,1886.5,1886.4,7.678]
[1743165261923,5.30166,1886.2,1886.1,0.05]
[1743165263425,5.30149,1886.3,1885.7,0.1139178]
[1743165263426,5.30278,1885.8,1885.7,0.1139178]
[1743165264517,8.30278,1885.8,1885.7,0.1139178]
[1743165265144,5.30534,1884.9,1884.7,28.023]
[1743165265353,5.30335,1885.6,1884.8,7.632]
[1743165265550,5.30441,1885.3,1884.8,12.93745]
[1743165265751,5.30449,1885.2,1884.8,12.93745]
[1743165265953,5.30441,1885.3,1884.8,12.93745]
[1743165266258,5.30503,1885.0,1884.9,7.627]
[1743165266627,5.30503,1885.0,1884.5,6.17852]
[1743165266865,5.30503,1885.0,1884.6,12.92104]
[1743165267031,5.30543,1884.9,1884.6,7.615]
[1743165267232,5.30475,1885.1,1884.7,7.61]
[1743165267451,5.3056,1884.8,1884.7,7.61]
[1743165267651,5.30724,1884.3,1884.1,0.9879]
[1743165267828,5.30724,1884.3,1884.2,7.613]
[1743165268230,5.30729,1884.2,1884.1,0.05]
[1743165268765,0.9384,1884.7,1884.1,5.35746]
[1743165268928,5.3058,1884.8,1884.3,5.307]
[1743165269127,5.30634,1884.6,1884.4,7.613]
[1743165269363,5.30679,1884.4,1884.3,7.608]
[1743165269670,5.30633,1884.6,1884.2,5.30729]
[1743165269841,5.30682,1884.4,1884.1,0.05]
[1743165270031,5.30729,1884.2,1884.1,0.05]
[1743165270833,5.30729,1884.2,1882.9,5.3107]
[1743165270834,5.30982,1883.3,1883.2,1.04975749]
[1743165271040,0.8924,1883.3,1882.5,6.39181322]
[1743165271267,5.31081,1883.0,1882.5,5.31187]
[1743165271484,5.31028,1883.2,1882.6,9.13747142]
[1743165271648,5.31028,1883.2,1882.7,5.31137]
[1743165271840,0.8924,1883.3,1882.7,0.9393]
[1743165271841,5.31068,1883.0,1882.7,0.9393]
[1743165272177,0.8791,1883.8,1882.7,0.9393]
[1743165272341,5.3087,1883.7,1882.9,10.62154]
[1743165272535,5.3095,1883.5,1882.9,5.31095]
[1743165272740,5.30916,1883.6,1883.0,0.531095]
[1743165272970,0.8791,1883.8,1882.8,7.651]
[1743165273357,5.30938,1883.5,1883.0,5.3104]
[1743165273559,5.30934,1883.5,1883.1,5.31024]
[1743165273871,3.8791,1883.8,1882.7,0.9393]
[1743165274090,3.8791,1883.8,1882.8,7.681]
[1743165274091,0.8791,1883.8,1882.8,7.681]
[1743165274272,5.3087,1883.7,1883.3,5.3098]
[1743165274479,6.18757,1883.8,1883.4,7.683]
[1743165274646,5.30835,1883.9,1883.4,12.99229]
[1743165274843,5.30844,1883.8,1883.4,7.683]
[1743165275273,5.30718,1884.3,1883.4,7.683]
[1743165275456,5.38755763,1884.4,1884.0,5.30768]
[1743165275663,10.69445763,1884.4,1884.1,7.666]
[1743165276085,10.69433763,1884.4,1884.1,7.666]
[1743165276244,3.33136019,1884.3,1884.1,12.97356]
[1743165276448,3.33136019,1884.3,1884.1,13.92092]
[1743165276642,8.63855019,1884.3,1884.1,7.666]
[1743165276848,4.19521521,1884.3,1884.0,7.657]
[1743165277050,3.33136019,1884.3,1884.0,12.96476]
[1743165277271,3.33136019,1884.3,1884.2,5.30729]
[1743165277543,3.33136019,1884.3,1884.2,9.20629]
[1743165278051,1.9e-07,1884.3,1884.2,9.20629]
[1743165278383,1.9e-07,1884.3,1884.2,16.86029]
[1743165278578,1.9e-07,1884.3,1884.2,17.41029]
[1743165278782,0.905,1885.8,1885.0,0.868]
[1743165278980,5.30325,1885.7,1885.1,7.647]
[1743165279181,5.30346,1885.6,1885.2,5.30436]
[1743165279384,5.30419,1885.3,1884.8,5.30556]
[1743165279569,5.30386,1885.5,1885.0,5.3048]
[1743165279769,5.30324,1885.7,1885.1,5.30475]
[1743165280088,10.65544,1885.9,1885.4,5.30373]
[1743165280246,0.05,1885.9,1885.7,5.30295]
[1743165280446,0.05,1885.9,1885.8,5.30278]
[1743165280858,0.05,1885.9,1885.8,6.24678]
[1743165281632,1e-05,1885.9,1885.8,33.83851466]
[1743165281747,5.30008,1886.8,1885.9,3.0]
[1743165281953,5.29973,1886.9,1886.4,5.30109]
[1743165282286,5.29973,1886.9,1886.5,7.618]
[1743165282585,10.59966,1886.9,1886.5,7.618]
[1743165282787,10.59962,1886.9,1886.5,7.618]
[1743165282984,5.2993,1887.1,1886.5,12.91862]
[1743165283284,5.29931,1887.1,1886.7,5.30022]
[1743165283474,5.3690564,1886.9,1886.7,5.30022]
[1743165283647,5.3690564,1886.9,1886.6,10.60096]
[1743165283853,5.3690564,1886.9,1886.6,10.60082]
[1743165284059,5.3690564,1886.9,1886.7,5.30004]
[1743165284262,5.3690564,1886.9,1886.8,5.29997]
[1743165284673,5.3690564,1886.9,1886.6,0.39582303]
[1743165284874,10.6688864,1886.9,1886.5,12.91869]
[1743165285073,5.3690564,1886.9,1886.6,5.30049]
[1743165285273,5.3690564,1886.9,1886.6,5.70445018]
[1743165285692,5.3690564,1886.9,1886.7,7.545]
[1743165286064,5.3690564,1886.9,1886.8,5.29997]
[1743165286264,5.3690564,1886.9,1886.7,12.84519]
[1743165286587,5.3690564,1886.9,1886.7,12.84504]
[1743165286755,5.299,1887.2,1886.7,12.84504]
[1743165286756,5.29917,1887.1,1886.7,12.84504]
[1743165286954,10.59798,1887.2,1886.8,5.2999]
[1743165287155,5.29898,1887.2,1886.8,5.2999]
[1743165287353,0.529898,1887.2,1886.7,7.545]
[1743165287556,5.29935,1887.1,1886.7,7.545]
[1743165287768,5.29982,1886.9,1886.8,7.499]
[1743165287986,5.29943,1887.0,1886.8,7.499]
[1743165288286,5.29876,1887.3,1886.9,5.29958]
[1743165288586,0.9005,1887.5,1886.9,5.29955]
[1743165288587,10.59697,1887.4,1886.9,5.29955]
[1743165288903,5.3690564,1887.6,1887.0,0.9526953]
[1743165289060,5.3690564,1887.6,1887.5,5.29801]
[1743165289257,5.3690564,1887.6,1887.5,15.61651926]
[1743165289454,3.19274851,1887.8,1887.6,5.29751]
[1743165289687,3.19274851,1887.8,1887.7,5.29745]
[1743165291818,0.9283,1889.2,1887.7,29.30812015]
[1743165292113,5.29532,1888.5,1888.1,5.29616]
[1743165292252,10.58928,1888.7,1888.2,7.531]
[1743165292450,10.66302493,1888.8,1888.2,7.531]
[1743165292451,5.36866493,1888.8,1888.2,7.531]
[1743165292707,5.36866493,1888.8,1888.4,5.29545]
[1743165292857,5.36866493,1888.8,1888.6,5.29476]
[1743165293058,5.36866493,1888.8,1888.7,7.52]
[1743165293259,10.66302493,1888.8,1888.5,0.8703]
[1743165293591,5.29464,1888.7,1888.6,7.515]
[1743165293794,10.66302493,1888.8,1888.6,7.515]
[1743165294305,6.96437642,1888.8,1888.2,4.16010431]
[1743165294457,5.29567,1888.4,1888.3,7.499]
[1743165295170,5.29606,1888.2,1887.7,34.81888398]
[1743165295420,5.29604,1888.2,1888.1,7.482]
[1743165296364,5.29656,1888.1,1887.7,33.73405015]
[1743165296561,5.29656,1888.1,1887.8,7.458]
[1743165296873,5.29637,1888.1,1887.8,7.458]
[1743165297092,5.29615,1888.2,1887.8,18.052]
[1743165297271,10.59242,1888.2,1887.8,12.75494]
[1743165297473,5.29615,1888.2,1887.8,12.75494]
[1743165297693,5.2965,1888.1,1887.8,7.458]
[1743165297910,1.059192,1888.2,1887.7,28.032]
[1743165298106,5.29793,1887.6,1887.2,0.9265]
[1743165298405,5.29747,1887.7,1887.3,12.7365]
[1743165298565,5.29741,1887.8,1887.4,12.72923]
[1743165298765,10.59481,1887.8,1887.4,12.72923]
[1743165299001,5.2974,1887.8,1887.4,12.72923]
[1743165299197,5.29738,1887.8,1887.4,12.72923]
[1743165299588,10.59476,1887.8,1887.4,12.72923]
[1743165299762,5.29738,1887.8,1887.4,12.72915]
[1743165299971,5.29746,1887.7,1887.4,7.431]
[1743165300379,5.29852,1887.4,1886.9,34.25983]
[1743165300589,5.29935,1887.1,1886.6,7.29738448]
[1743165300778,5.29996,1886.9,1886.6,7.392]
[1743165301103,5.30038,1886.7,1886.5,7.391]
[1743165301406,5.29888,1887.2,1886.5,12.69165]
[1743165301567,5.3001,1886.8,1886.5,7.391]
[1743165302300,5.828768,1887.2,1886.6,7.369]
[1743165302468,10.60039,1886.8,1886.6,7.369]
[1743165302668,5.30025,1886.7,1886.6,7.369]
[1743165303298,5.30138,1886.3,1886.1,0.05]
[1743165303478,6.23366,1886.2,1886.1,0.05]
[1743165304593,5.30383,1885.5,1885.0,5.3048]
[1743165304769,3.932,1886.2,1885.3,5.30407]
[1743165304770,5.30286,1885.8,1885.3,5.30407]
[1743165305099,10.60654,1885.7,1885.3,5.30413]
[1743165305295,5.30337,1885.6,1885.2,5.30434]
[1743165305702,5.30337,1885.6,1885.3,7.326]
[1743165306067,5.30318,1885.7,1885.3,12.63016]
[1743165306299,5.30285,1885.8,1885.3,12.63016]
[1743165306513,5.30307,1885.7,1885.3,12.63016]
[1743165306966,5.69516,1886.1,1885.5,5.3034]
[1743165306967,5.30251,1885.9,1885.5,5.3034]
[1743165307176,0.3932,1886.1,1885.3,7.326]
[1743165307379,6.23391,1886.2,1884.9,6.2143]
[1743165307380,5.30382,1885.5,1884.9,6.2143]
[1743165307580,5.30399,1885.4,1885.3,7.304]
[1743165307808,5.30431,1885.3,1884.8,5.69610358]
[1743165307991,5.30447,1885.2,1885.1,7.298]
[1743165308389,5.30431,1885.3,1884.6,30.00277975]
[1743165308390,5.30363,1885.5,1884.6,30.00277975]
[1743165308601,5.30521,1885.0,1884.9,7.294]
[1743165308802,5.30521,1885.0,1884.8,7.287]
[1743165309105,5.30363,1885.5,1884.8,7.287]
[1743165309106,5.30186,1886.2,1884.8,7.68104755]
[1743165309307,5.30291,1885.8,1885.3,5.30418]
[1743165309469,0.8998,1886.0,1885.4,7.288]
[1743165309672,5.30317,1885.7,1885.4,7.288]
[1743165309895,0.8998,1886.0,1885.4,7.288]
[1743165310094,5.30225,1886.0,1885.6,5.3033]
[1743165310367,5.30272,1885.9,1885.4,7.288]
[1743165310573,5.30224,1886.0,1885.6,5.30321]
[1743165310773,5.30281,1885.8,1885.4,12.99759532]